[Event "WSTCC-50 2024"]
[Site "Krakow"]
[Date "2024.07.04"]
[Round "3.9"]
[White "Olafsson, Helgi"]
[Black "Oratovsky, Michael"]
[Result "1/2-1/2"]
[ECO "A41"]
[WhiteElo "2466"]
[BlackElo "2417"]
[Annotator "TA"]
[PlyCount "65"]
[EventDate "2024.07.01"]
[EventType "team-tourn"]
[EventCountry "POL"]
[SourceTitle "playchess.com"]
[Source "ChessBase"]
[SourceQuality "1"]
[TimeControl "40/5400+30:1800+30"]

{[%evp 11,65,21,35,41,35,24,31,23,19,29,30,9,25,24,47,21,37,0,0,0,62,0,0,14,12,-65,-43,-41,51,51,50,47,61,-67,-64,-162,-57,-173,-172,-172,-164,-171,-163,-197,0,0,0,0,16,25,31,26,29,8,8,15]} 1. d4 {[%emt 0:00:04]} d6 {[%emt 0:09:55]} 2. Nf3 {[%emt 0:00:16]} Nf6 {[%emt 0:01:44]} 3. c4 {[%emt 0:00:23]} g6 {[%emt 0:01:00]} 4. Nc3 {[%emt 0:00:25]} Bf5 {[%emt 0:01:15]} 5. Nh4 {[%emt 0:04:04]} Bd7 {[%emt 0:03:32]} 6. e4 {[%emt 0:00:27]} e5 {[%emt 0:00:28]} 7. Nf3 {[%emt 0:01:59]} Bg7 {[%emt 0:06:23]} 8. d5 {[%emt 0:05:09]} a5 {[%emt 0:12:24]} 9. h3 {White is slightly better.} Na6 {[%emt 0:04:00]} 10. Bg5 {[%emt 0:09:17]} Nc5 {[%emt 0:05:36][%cal Oh7h6]} 11. Bd3 {[%emt 0:04:09]} h6 {[%emt 0:15:39]} 12. Be3 {[%emt 0:00:13]} Nh5 {[%emt 0:03:06]} 13. Bc2 {[%emt 0:01:02]} Nf4 {[%emt 0:00:29]} 14. Rg1 {[%emt 0:01:03]} O-O {[%emt 0:22:44]} 15. Qd2 {[%emt 0:16:52][%cal Of3e5]} f5 {[%emt 0:06:05]} (15... b6 $11) 16. exf5 {[%emt 0:04:56]} (16. Nxe5 $14 Bxe5 17. Bxf4 Bxf4 18. Qxf4) 16... Bxf5 $11 {[%emt 0:01:09]} 17. Bxc5 {[%emt 0:00:30]} dxc5 {[%emt 0:00:30]} 18. Ne4 {[%emt 0:00:09]} (18. O-O-O $11) 18... b5 {[%emt 0:02:39]} 19. cxb5 {[%emt 0:02:00]} Nxd5 {[%emt 0:00:15]} (19... Qxd5 $6 20. Qxd5+ Nxd5 21. g4 Bxe4 22. Bxe4 $14) (19... a4 $15) 20. O-O-O $14 {[%emt 0:05:12]} Nb4 21. Bb3+ Kh8 {[%emt 0:01:03]} 22. Qe2 {[%emt 0:00:41] Active counter play!} (22. Nxc5 $2 Qe7 23. Qc3 e4 $19) (22. Qxd8 $14 Raxd8 (22... Rfxd8 23. Nxc5 Nd3+ 24. Nxd3 $16) 23. Nxc5) 22... Qe8 $1 $15 {[%emt 0:00:22] ...Bxe4 would now be deadly.} 23. a3 {[%emt 0:00:06] [#]} (23. Nh4 $15 a4 24. Bc4) 23... a4 {[%emt 0:01:10]} (23... Bxe4 $1 $19 24. Qxe4 Rf4) 24. Bc4 {[%emt 0:00:29]} (24. Nxc5 $2 axb3 25. axb4 e4 26. Nxb3 exf3 27. Qxe8 Rfxe8 $19 (27... Raxe8 $2 28. Nd4 $19)) ({Better is} 24. Bd5 $1 $15 Nxd5 25. Rxd5) 24... Bxe4 $19 {[%emt 0:00:14]} 25. Qxe4 {[%emt 0:00:05][%cal Og1e1] Rge1! is the strong threat.} Rf4 {[%emt 0:00:04]} 26. Qe2 {[%emt 0:00:29][%cal Og2g3]} e4 $1 {[%emt 0:00:11][%cal Oe8f8] Threatens to win with ...Qf8!} 27. Ne1 {[%emt 0:02:35][%cal Og2g3] [#]} Qe5 $2 {[%emt 0:01:29]} 28. g3 $1 $36 {[%emt 0:01:44][%mdl 2048] White has good play.} (28. axb4 $2 a3 29. Kb1 axb2 $19) 28... Rff8 {[%cal Oc7c6] Hoping for ...c6!} 29. Ng2 {[%emt 0:00:11][%cal Og2f4]} (29. axb4 $2 {perishes.} a3 30. Nd3 axb2+ (30... exd3 $2 31. Qxe5 Bxe5 32. Kd2 $19) 31. Qxb2 Ra1+ (31... exd3 32. Qxe5 Bxe5 33. f4 $17) 32. Kd2 e3+ (32... Qxb2+ 33. Nxb2 Ra3 34. bxc5 $11) (32... Qg5+ $2 33. f4 $19) 33. fxe3 Rf2+ (33... Qxb2+ $2 34. Nxb2 Ra3 35. Nd3 $18) 34. Nxf2 Qxb2+ 35. Ke1 Qc3+ (35... cxb4 $2 36. Bd3 $19) (35... Qxb4+ $2 36. Kf1 $19) 36. Kf1 Rxd1+ (36... Qxc4+ $2 37. Kg2 $19) (36... Qxb4 $2 37. Rxa1 Qxc4+ 38. Kg2 $19) (36... Qxe3 $2 37. bxc5 Ra8 38. Kg2 $19) (36... cxb4 $2 37. Rxa1 Qxc4+ 38. Kg2 $19) 37. Nxd1 Qxc4+ $19) 29... Nd3+ {[%emt 0:01:00]} 30. Bxd3 {[%emt 0:00:17]} exd3 {[%emt 0:00:08]} 31. Qxe5 {[%emt 0:00:43]} Bxe5 {[%emt 0:00:04]} 32. Rge1 {[%emt 0:02:07]} Bxb2+ {[%emt 0:00:31]} 33. Kxb2 {[%emt 0:00:08] Weighted Error Value: White=0.30/Black=0.25 (precise) .  Missed win:     	---       	Black=1      Mistake:       	White=5     	Black=3      Inaccurate:     	White=1     	---        OK:         	White=7     	Black=7      Best:        	White=3     	Black=3      Strong:       	White=1     	Black=2} 1/2-1/2

[Event "WSTCC-50 2024"]
[Site "Krakow"]
[Date "2024.07.04"]
[Round "3.9"]
[White "Schuster, Karsten"]
[Black "Skibbe, Diana"]
[Result "1-0"]
[ECO "A81"]
[WhiteElo "2307"]
[BlackElo "1942"]
[Annotator "TA"]
[PlyCount "79"]
[EventDate "2024.07.01"]
[EventType "team-tourn"]
[EventCountry "POL"]
[SourceTitle "playchess.com"]
[Source "ChessBase"]
[SourceQuality "1"]
[TimeControl "40/5400+30:1800+30"]

{[%evp 15,79,30,80,74,75,63,92,95,105,99,103,93,125,106,102,72,75,70,64,64,91,32,39,45,108,99,149,157,160,150,162,50,211,211,271,42,46,30,23,0,145,112,109,118,127,123,133,147,1245,572,756,762,772,758,725,657,1607,1607,1607,1600,1573,1566,1558,1541,1333,1232]} 1. d4 {[%emt 0:00:02]} f5 {[%emt 0:00:02]} 2. g3 {[%emt 0:00:35]} Nf6 {[%emt 0:00:09]} 3. Bg2 {[%emt 0:00:06]} g6 {[%emt 0:00:02]} 4. Nf3 {[%emt 0:00:13]} Bg7 {[%emt 0:00:03]} 5. O-O {[%emt 0:00:15]} O-O {[%emt 0:00:17]} 6. b3 {[%emt 0:00:57]} d6 {[%emt 0:02:02][%cal Bd7d6,Bd6d5][%mdl 32]} 7. Bb2 {[%emt 0:00:28]} c6 {[%emt 0:01:45]} 8. Nbd2 {[%emt 0:02:08]} Kh8 {[%emt 0:04:07]} (8... a5 $11 {remains equal.}) 9. Re1 $16 {[%emt 0:07:16]} Ne4 {[%emt 0:04:53]} 10. c4 {[%emt 0:05:22]} Nxd2 {[%emt 0:06:38]} 11. Qxd2 {[%emt 0:00:35] White is better.} (11. Nxd2 e5 $14) 11... d5 {[%emt 0:06:32]} 12. h4 {[%emt 0:15:40]} Be6 {[%emt 0:06:25]} 13. Rac1 {[%emt 0:10:01]} Nd7 {[%emt 0:01:44]} 14. Ba3 {[%emt 0:05:26]} Bg8 {[%emt 0:07:07]} 15. Qb4 {[%emt 0:07:36][%csl LRb7,LRe7]} dxc4 {[%emt 0:05:47]} 16. bxc4 {[%emt 0:02:14]} (16. Qxe7 Qxe7 (16... cxb3 17. axb3 Bd5 18. Qb4 $14) 17. Bxe7 Rfe8 $11) 16... Nb6 {[%emt 0:02:28]} 17. e3 {[%emt 0:02:42][%cal Of3d2]} (17. Qxe7 Nxc4 18. Bc5 Qxe7 19. Bxe7 Rfe8 $11) 17... Re8 {[%emt 0:03:21]} 18. c5 {[%emt 0:02:57] White is more active.} (18. Ne5 $16) 18... Nd5 $14 {[%emt 0:00:09]} 19. Qb1 {[%emt 0:05:33]} Qc7 {[%emt 0:04:05]} ({Better is} 19... Rf8 $14) 20. h5 $1 $16 {[%emt 0:02:22]} Nf6 {[%emt 0:09:22]} ({Black should try} 20... Bf7) 21. hxg6 {[%emt 0:00:01]} hxg6 {[%emt 0:00:29]} 22. Ne5 {[%emt 0:00:22]} Kh7 {[%emt 0:04:00] [#]} 23. Bf3 {[%emt 0:04:06]} ({White should play} 23. e4 $1 $18 {[%cal Re4f5]} Nxe4 24. Rxe4 (24. Bxe4 Bxe5 25. Bxf5 Bxd4 $16) 24... fxe4 25. Bxe4 Bxe5 26. Bxg6+ (26. dxe5 Qa5 $16) 26... Kh6 27. dxe5 (27. Bxe8 Rxe8 28. dxe5 Be6 $14)) 23... Bd5 $2 {[%emt 0:05:57]} (23... Ne4 $14) 24. Bxd5 $18 {[%emt 0:05:17]} Nxd5 {[%emt 0:00:06] [#]} 25. Nf3 {[%emt 0:01:53]} (25. e4 $1 $18 {[%cal Re4d5]} fxe4 26. Rxe4 (26. Qxe4 Bxe5 27. Qxe5 Qxe5 $11) 26... Bxe5 27. Rh4+ (27. Rxe5 e6 $16) 27... Kg7 28. Rg4 (28. dxe5 e6 $14)) 25... Bf6 $14 {[%emt 0:00:28]} 26. e4 {[%emt 0:01:05]} fxe4 {[%emt 0:01:29]} 27. Rxe4 {[%emt 0:00:31] Strongly threatening Rg4.} e6 {[%emt 0:00:36]} (27... Qd7 $11) 28. Kg2 {[%emt 0:02:10]} Kg7 {[%emt 0:00:12]} 29. Rg4 {[%emt 0:04:41]} Qf7 {[%emt 0:00:15]} 30. Qe4 $36 {[%emt 0:00:57][%mdl 2048] White is really pushing.} Re7 {[%emt 0:02:27]} 31. Rh1 {[%emt 0:00:50] And now Bc1 would win.} Rf8 $2 {[%emt 0:04:19][%mdl 8192]} (31... Ree8 $16 32. Rhh4 Rh8 (32... Bxh4 $2 33. Ne5 $18) 33. Rxg6+ (33. Ne5 Bxe5 34. Qxe5+ Qf6 $11) 33... Qxg6) 32. Bc1 {[%emt 0:00:55]} (32. Ne5 $142 {[%cal Rg4g6]} Bxe5 33. Qxe5+ Nf6 34. Rgh4) 32... Rh8 {[%emt 0:04:34]} 33. Rxh8 {[%emt 0:02:17]} Kxh8 {[%emt 0:00:01]} 34. Rxg6 {[%emt 0:00:24] Hoping for Bg5.} Bg7 {[%emt 0:01:30]} 35. Bg5 {[%emt 0:05:08]} Nf6 {[%emt 0:07:05] [#]} 36. Rxf6 {[%emt 0:00:44][%mdl 512]} Bxf6 {[%emt 0:00:17] Black is weak on the dark squares} 37. Qh4+ {[%emt 0:00:04]} Kg7 {[%emt 0:02:26]} 38. Qh6+ {[%emt 0:00:05]} Kg8 {[%emt 0:00:07]} 39. Bxf6 {[%emt 0:00:08]} Qh7 {[%emt 0:00:07]} 40. Qg5+ {[%emt 0:00:03] Weighted Error Value: White=0.57/Black=0.37.  Loses game:     	---       	Black=2      Missed win:     	White=1     	---        Mistake:       	White=3     	Black=3      Inaccurate:     	---       	Black=4      OK:         	White=3     	Black=9      Best:        	White=2     	Black=2      Strong:       	White=1     	---} 1-0

[Event "WSTCC-50 2024"]
[Site "Krakow"]
[Date "2024.07.04"]
[Round "3.9"]
[White "Belakovskaia, Anjelina"]
[Black "Csonkics, Tunde"]
[Result "1/2-1/2"]
[ECO "B50"]
[WhiteElo "2171"]
[BlackElo "1995"]
[Annotator "RC"]
[PlyCount "86"]
[EventDate "2024.07.01"]
[EventType "team-tourn"]
[EventCountry "POL"]
[SourceTitle "playchess.com"]
[Source "ChessBase"]
[SourceQuality "1"]
[TimeControl "40/5400+30:1800+30"]

1. e4 {[%emt 0:00:04]} c5 {[%emt 0:00:03]} 2. Nf3 {[%emt 0:00:05]} d6 {[%emt 0:00:02]} 3. c3 {[%emt 0:00:08]} Nf6 {[%emt 0:00:22]} 4. Bd3 {[%emt 0:00:12]} Nc6 {[%emt 0:00:45]} 5. Bc2 {[%emt 0:00:16]} Bg4 {[%emt 0:01:04]} 6. h3 {[%emt 0:00:50]} Bxf3 {[%emt 0:00:21]} 7. Qxf3 {[%emt 0:00:25]} g6 {[%emt 0:00:19]} 8. d3 {[%emt 0:02:50]} Bg7 {[%emt 0:00:34]} 9. O-O {[%emt 0:03:01]} O-O {[%emt 0:00:11]} 10. Nd2 {[%emt 0:07:58]} b5 {[%emt 0:06:19]} 11. Rd1 {[%emt 0:02:52]} Rc8 {[%emt 0:03:20]} 12. Qe2 {[%emt 0:03:07]} b4 {[%emt 0:13:36]} 13. Nb3 {[%emt 0:08:50]} a5 {[%emt 0:07:13]} 14. a4 {[%emt 0:00:13]} bxc3 {[%emt 0:07:02]} 15. bxc3 {[%emt 0:00:09]} Qb6 {[%emt 0:01:15]} 16. Be3 {[%emt 0:07:10]} Nd7 {[%emt 0:02:30]} 17. Qd2 {[%emt 0:03:36]} Rfe8 {[%emt 0:03:34]} 18. Rab1 {[%emt 0:07:12]} Qa6 {[%emt 0:01:46]} 19. Nc1 {[%emt 0:16:39]} Rb8 {[%emt 0:05:33]} 20. Ne2 {[%emt 0:04:18]} e6 {[%emt 0:18:15]} 21. Bh6 {[%emt 0:03:06]} Bh8 {[%emt 0:02:22]} 22. Nf4 {[%emt 0:04:35]} Nde5 {[%emt 0:02:30]} 23. Rxb8 {[%emt 0:02:43]} Rxb8 {[%emt 0:00:17]} 24. Rb1 {[%emt 0:00:16]} Rxb1+ {[%emt 0:07:57]} 25. Bxb1 {[%emt 0:00:02]} Qc8 {[%emt 0:01:09]} 26. Ba2 {[%emt 0:03:31]} Bg7 {[%emt 0:00:13]} 27. Bxg7 {[%emt 0:01:35]} Kxg7 {[%emt 0:00:02]} 28. d4 {[%emt 0:01:29]} cxd4 {[%emt 0:00:15]} 29. cxd4 {[%emt 0:00:02]} Nxd4 {[%emt 0:00:23]} 30. Nh5+ {[%emt 0:06:24]} gxh5 {[%emt 0:00:06]} 31. Qxd4 {[%emt 0:00:04]} Qc1+ {[%emt 0:00:27]} 32. Kh2 {[%emt 0:00:37]} Qf4+ {[%emt 0:02:52]} 33. g3 {[%emt 0:09:08]} Qf3 {[%emt 0:00:15]} 34. Bb1 {[%emt 0:01:45]} h4 {[%emt 0:09:54]} 35. gxh4 {[%emt 0:00:38]} Qf4+ {[%emt 0:01:18]} 36. Kg2 {[%emt 0:00:11]} Qf3+ {[%emt 0:01:17]} 37. Kh2 {[%emt 0:00:30]} Qf4+ {[%emt 0:01:11]} 38. Kg2 {[%emt 0:00:01]} Qxh4 {[%emt 0:00:36]} 39. Qxd6 {[%emt 0:01:01]} Qg5+ {[%emt 0:00:41]} 40. Kf1 {[%emt 0:02:22]} Qc1+ {[%emt 0:00:50]} 41. Kg2 {[%emt 0:00:48]} Qg5+ {[%emt 0:04:41]} 42. Kf1 {[%emt 0:01:09]} Nf3 {[%emt 0:07:07]} 43. Bd3 {[%emt 0:02:37]} Ne5 {[%emt 0:02:34]} 1/2-1/2

[Event "WSTCC-50 2024"]
[Site "Krakow"]
[Date "2024.07.04"]
[Round "3.10"]
[White "Kaspi, Alexander"]
[Black "Hjartarson, Johann"]
[Result "0-1"]
[ECO "E41"]
[WhiteElo "2365"]
[BlackElo "2472"]
[Annotator "TA"]
[PlyCount "140"]
[EventDate "2024.07.01"]
[EventType "team-tourn"]
[EventCountry "POL"]
[SourceTitle "playchess.com"]
[Source "ChessBase"]
[SourceQuality "1"]
[TimeControl "40/5400+30:1800+30"]

{[%evp 24,140,0,-36,-16,-35,-23,-53,-43,-54,-43,-34,-47,-60,-56,-58,-62,-51,-50,-68,-60,-80,-83,-67,-72,-76,-69,-78,-56,-59,-63,-80,-58,-52,-51,-90,-90,-90,-50,-86,-78,-84,-85,-79,-79,-88,-83,-121,-109,-115,-97,-77,-55,-59,-52,-54,-48,-62,-33,-55,-47,-49,0,-53,-53,-39,0,-43,0,-43,-38,-62,-58,-380,-349,-386,-364,-300,-260,-850,-772,-1197,-1135,-1472,-1280,-1558,-1406,-1660,-1462,-1228,-1611,-2577,-1553,-2586,-2382,-5539,-1875,-29944,-8977,-29965,-29965,-29966,-29967,-29965,-29964,-29958,-29956,-29963,-5427,-29972,-29971,-6115,-1143,-29978,-29979,-29980,-29981,-29984,-29985]} 1. d4 {[%emt 0:00:05]} Nf6 {[%emt 0:00:09]} 2. c4 {[%emt 0:00:07]} e6 {[%emt 0:00:17]} 3. Nc3 {[%emt 0:00:09]} Bb4 {[%emt 0:00:06]} 4. e3 {[%emt 0:00:20]} c5 {[%emt 0:00:18]} 5. Bd3 {[%emt 0:01:11]} Nc6 {[%emt 0:00:14]} 6. Nge2 {[%emt 0:00:21]} cxd4 {[%emt 0:00:13]} 7. exd4 {[%emt 0:00:08]} d5 {[%emt 0:00:06]} 8. cxd5 {[%emt 0:00:37]} Nxd5 {[%emt 0:00:08]} 9. O-O {[%emt 0:00:07]} O-O {[%emt 0:00:07]} 10. Bc2 {[%emt 0:00:14]} Re8 {[%emt 0:00:27]} 11. Qd3 {[%emt 0:00:09]} g6 {[%emt 0:00:12]} 12. Rd1 {[%emt 0:10:49]} Bf8 {[%emt 0:00:20]} 13. a3 {[%emt 0:00:09]} Bg7 {[%emt 0:01:21]} 14. Ne4 {[%emt 0:04:51]} Nce7 {[%emt 0:05:55]} 15. Bg5 {[%emt 0:08:34]} h6 {[%emt 0:01:05] Black is slightly better.} 16. Bd2 {[%emt 0:02:49]} Qb6 {[%emt 0:07:19]} 17. Nc5 {[%emt 0:14:13]} Nf5 {[%emt 0:01:45][%cal Of5d4]} (17... Qxb2 $2 18. Rdb1 $18) 18. b4 {[%emt 0:00:27]} Qd8 {[%emt 0:07:09]} (18... Qd6 {looks sharper.} 19. Rac1 b6 20. Ba4 Rd8) 19. Ba4 {[%emt 0:03:47]} Rf8 {[%emt 0:00:39]} 20. Rac1 {[%emt 0:06:56]} Qe7 {[%emt 0:05:57]} 21. Ne4 {[%emt 0:04:57]} Rd8 {[%emt 0:01:18]} 22. g4 {[%emt 0:06:09]} Nd6 {[%emt 0:05:01]} 23. Nxd6 {[%emt 0:03:18]} Qxd6 {[%emt 0:01:26]} 24. Bb3 {[%emt 0:01:35]} b6 {[%emt 0:01:55]} 25. Qg3 {[%emt 0:06:56]} Ba6 {[%emt 0:04:08]} 26. Bc4 {[%emt 0:06:04]} Bxc4 {[%emt 0:02:00]} 27. Rxc4 {[%emt 0:01:03]} b5 {[%emt 0:02:25]} 28. Rc5 {[%emt 0:03:29]} a6 {[%emt 0:03:25]} 29. Rdc1 {[%emt 0:01:54]} Qxg3+ {[%emt 0:05:12]} 30. hxg3 {[%emt 0:00:10]} Nb6 {[%emt 0:00:31][%cal Ob6c4]} 31. Rc6 {[%emt 0:07:19]} Nc4 {[%emt 0:03:13]} (31... Bxd4 $2 32. Nxd4 Nc4 (32... Rxd4 $2 33. Be3 $18) 33. Bc3 $18 (33. Bxh6 Rxd4 34. Kg2 Rd5 $15)) 32. Bc3 {[%emt 0:01:45]} Rdc8 {[%emt 0:02:03]} 33. Rxc8+ {[%emt 0:00:06]} Rxc8 {[%emt 0:00:07]} 34. Ra1 {[%emt 0:00:47]} Nb6 {[%emt 0:01:18] Black has more active pieces.} 35. Ra2 {[%emt 0:00:10]} Rc4 {[%emt 0:06:08]} 36. Kg2 {[%emt 0:00:30]} Kf8 {[%emt 0:01:38]} 37. Kf3 {[%emt 0:00:30]} Ke8 {[%emt 0:00:45]} 38. Ke4 {[%emt 0:00:56]} Kd7 {[%emt 0:07:28]} 39. Kd3 {[%emt 0:00:13]} Bf8 {[%emt 0:04:02]} 40. Bd2 {[%emt 0:04:36]} Rc8 {[%emt 0:01:12]} 41. Ra1 {[%emt 0:30:24]} Na4 {[%emt 0:31:19]} 42. Ra2 {[%emt 0:00:51]} Nb6 {[%emt 0:07:30]} 43. Ra1 {[%emt 0:00:16]} Nc4 {[%emt 0:00:53]} 44. Bc3 {[%emt 0:01:15]} Nb6 {[%emt 0:04:05]} 45. Bd2 {[%emt 0:00:00]} Nd5 {[%emt 0:00:00]} 46. Rc1 {[%emt 0:00:00]} Rxc1 {[%emt 0:00:00]} 47. Bxc1 $15 {[%emt 0:00:00][%mdl 4096] Endgame. KBN-KBN} Kc6 {[%emt 0:00:00]} 48. Nc3 $2 {[%emt 0:00:00][%mdl 8192] [#] This costs White the game.} ({White should try} 48. Bd2 $15) 48... Nxc3 $1 $19 {[%emt 0:00:00]} 49. Kxc3 {[%emt 0:00:00] KB-KB} Kd5 {[%emt 0:00:00]} 50. Kd3 {[%emt 0:00:00]} Bg7 {[%emt 0:00:00]} 51. Bb2 {[%emt 0:00:00]} (51. Be3) 51... f5 {[%emt 0:00:00]} 52. gxf5 {[%emt 0:00:00]} exf5 {[%emt 0:00:00]} 53. f4 {[%emt 0:00:00]} Bf6 {[%emt 0:00:00] [#] Hoping for ...Bg7.} 54. Bc3 {[%emt 0:00:00]} h5 {[%emt 0:00:00]} 55. Bb2 {[%emt 0:00:00]} g5 {[%emt 0:00:00] And now ...gxf4 would win.} 56. fxg5 {[%emt 0:00:00]} Bxg5 {[%emt 0:00:00]} 57. Bc3 {[%emt 0:00:00]} Bc1 {[%emt 0:00:00]} 58. Be1 {[%emt 0:00:00]} Bb2 {[%emt 0:00:00]} 59. Ke3 {[%emt 0:00:00]} Bxd4+ {[%emt 0:00:00]} (59... Kc4 $142 60. d5 Kxd5 (60... Bxa3 61. d6 $11)) 60. Kf4 {[%emt 0:00:00]} Ke6 {[%emt 0:00:00] ( -> ...Bb2)} 61. Kg5 {[%emt 0:00:00]} Bb2 {[%emt 0:00:00]} 62. Kxh5 {[%emt 0:00:00]} Bxa3 {[%emt 0:00:00]} 63. Bd2 {[%emt 0:00:00]} Kd5 {[%emt 0:00:00]} 64. Kg5 {[%emt 0:00:08]} Ke4 {[%emt 0:00:00]} 65. Kf6 {[%emt 0:01:50]} Bb2+ {[%emt 0:00:00]} (65... Kd3 $142 66. Be1 Bb2+ 67. Ke6 Ke2 68. Kxf5 Kxe1 69. Ke6 Ba3 70. g4 Bxb4 71. g5 Bc3 72. g6 b4 73. Ke7 b3 74. Kf7 b2 75. g7 Bxg7 (75... b1=B {gets mated.} 76. g8=Q Ba2+ 77. Kf8 Bxg8 78. Kxg8 a5 79. Kf7 a4 80. Ke8 a3 81. Kd7 a2 82. Kc6 a1=Q 83. Kb5 Qa5+ 84. Kc6 Be5 85. Kd7 Qd5+ 86. Ke7 Bd4 87. Ke8 Qe6+ 88. Kf8 Qd7 89. Kg8 Qg7#) 76. Kxg7 a5 (76... b1=B {leads to mate.} 77. Kf6 Kd2 78. Ke6 Kc3 79. Ke7 a5 80. Kf8 a4 81. Kf7 a3 82. Kf8 a2 83. Kf7 a1=Q 84. Ke6 Kb4 85. Ke7 Kc5 86. Kf8 Kd5 87. Kf7 Kd6 88. Kg8 Bg6 89. Kf8 Qh8#) 77. Kh6 a4 (77... b1=B 78. Kg7 a4 79. Kg8 a3 80. Kg7 a2 81. Kf8 a1=Q 82. Ke7 Qe5+ 83. Kd8 Qd6+ 84. Kc8 Bf5+ 85. Kb7 Be4+ 86. Kc8 Qe7 87. Kb8 Qb7#) 78. Kh5 a3 (78... b1=B 79. Kg5 a3 80. Kf6 a2 81. Ke7 a1=Q 82. Ke6 Qd4 83. Ke7 Ba2 84. Ke8 Qg7 85. Kd8 Be6 86. Ke8 Qf7+ 87. Kd8 Qd7#) (78... b1=Q {is a self mate.} 79. Kh6 a3 80. Kg5 a2 81. Kg4 a1=Q 82. Kg5 Qe5+ 83. Kh4 Qh7+ 84. Kg4 Qhh5#) 79. Kh4 b1=Q (79... b1=B 80. Kg5 a2 81. Kf6 a1=Q+ 82. Ke6 Qd4 83. Ke7 Bf5 84. Kf7 Qe5 85. Kf8 Qf6+ 86. Kg8 Qe7 87. Kh8 Qh7#) 80. Kh5 a2 81. Kg4 a1=Q (81... a1=B 82. Kh5 Bf6 83. Kh6 Kf2 84. Kh5 Qf5+ 85. Kh6 Qg5+ 86. Kh7 Qg7#) 82. Kg5 Qe5+ 83. Kh4 Qh7+ 84. Kg4 Qhh5#) 66. Ke6 {[%emt 0:00:11]} Be5 {[%emt 0:01:48]} 67. Be1 {[%emt 0:00:24]} Bb8 {[%emt 0:00:49]} (67... Bh8 $142 68. Bd2 Be5) 68. Kd7 {[%emt 0:01:19]} Kf3 {[%emt 0:00:29] Black mates.} 69. Kc6 {[%emt 0:00:16]} Bxg3 {[%emt 0:00:14]} 70. Bc3 {[%emt 0:00:03]} Ke4 {[%emt 0:00:17] Weighted Error Value: White=0.74/Black=0.15 (very precise) .  Loses game:     	White=1     	---        Mistake:       	White=1     	---        Inaccurate:     	White=6     	Black=3      OK:         	White=14    	Black=13     Best:        	---       	Black=1      Strong:       	---       	Black=1} 0-1

[Event "WSTCC-50 2024"]
[Site "Krakow"]
[Date "2024.07.04"]
[Round "3.10"]
[White "Horvath, Julia"]
[Black "Marinello, Beatriz"]
[Result "0-1"]
[ECO "E15"]
[WhiteElo "2116"]
[BlackElo "2109"]
[Annotator "RC"]
[PlyCount "124"]
[EventDate "2024.07.01"]
[EventType "team-tourn"]
[EventCountry "POL"]
[SourceTitle "playchess.com"]
[Source "ChessBase"]
[SourceQuality "1"]
[TimeControl "40/5400+30:1800+30"]

1. d4 {[%emt 0:00:03]} Nf6 {[%emt 0:00:09]} 2. c4 {[%emt 0:00:04]} e6 {[%emt 0:00:09]} 3. Nf3 {[%emt 0:00:11]} b6 {[%emt 0:00:19]} 4. g3 {[%emt 0:00:37]} Ba6 {[%emt 0:00:13]} 5. Qc2 {[%emt 0:00:18]} Bb7 {[%emt 0:00:35]} 6. Bg2 {[%emt 0:00:14]} Be7 {[%emt 0:02:45]} 7. Nc3 {[%emt 0:01:23]} c5 {[%emt 0:01:22]} 8. dxc5 {[%emt 0:00:24]} bxc5 {[%emt 0:00:50]} 9. O-O {[%emt 0:02:00]} Nc6 {[%emt 0:02:04]} 10. b3 {[%emt 0:13:11]} O-O {[%emt 0:02:50]} 11. Bb2 {[%emt 0:00:52]} Qc8 {[%emt 0:07:44]} 12. Rfd1 {[%emt 0:05:41]} Rd8 {[%emt 0:00:37]} 13. Rac1 {[%emt 0:02:37]} d6 {[%emt 0:01:11]} 14. e3 {[%emt 0:03:39]} Rb8 {[%emt 0:03:55]} 15. Ng5 {[%emt 0:13:16]} Nb4 {[%emt 0:03:58]} 16. Qe2 {[%emt 0:02:46]} Bxg2 {[%emt 0:04:48]} 17. Kxg2 {[%emt 0:00:05]} Qb7+ {[%emt 0:00:13]} 18. Qf3 {[%emt 0:01:44]} h6 {[%emt 0:01:27]} 19. Qxb7 {[%emt 0:01:26]} Rxb7 {[%emt 0:00:10]} 20. Nf3 {[%emt 0:00:11]} a6 {[%emt 0:03:55]} 21. Rd2 {[%emt 0:02:21]} Rdb8 {[%emt 0:06:23]} 22. Ne1 {[%emt 0:06:08]} Nc6 {[%emt 0:01:24]} 23. Rcd1 {[%emt 0:01:29]} Ne5 {[%emt 0:02:35]} 24. Nd3 {[%emt 0:02:46]} Nc6 {[%emt 0:01:18]} 25. h3 {[%emt 0:04:39]} Na5 {[%emt 0:05:31]} 26. e4 {[%emt 0:08:39]} Nc6 {[%emt 0:02:27]} 27. f3 {[%emt 0:01:32]} Nd7 {[%emt 0:03:43]} 28. h4 {[%emt 0:08:27]} Nb6 {[%emt 0:03:12]} 29. f4 {[%emt 0:03:14]} Kf8 {[%emt 0:05:26]} 30. Ba3 {[%emt 0:02:04]} Nd7 {[%emt 0:07:02]} 31. Ne2 {[%emt 0:04:16]} Ke8 {[%emt 0:00:53]} 32. Bb2 {[%emt 0:00:42]} f6 {[%emt 0:03:49]} 33. Kf3 {[%emt 0:04:08]} Rc8 {[%emt 0:05:00]} 34. Ke3 {[%emt 0:03:03]} Nb6 {[%emt 0:02:30]} 35. Kf3 {[%emt 0:00:28]} Nd7 {[%emt 0:00:27]} 36. Bc3 {[%emt 0:00:36]} Nb6 {[%emt 0:01:34]} 37. Ba1 {[%emt 0:01:00]} Rd7 {[%emt 0:00:30]} 38. Nf2 {[%emt 0:00:41]} Rcd8 {[%emt 0:00:28]} 39. Bc3 {[%emt 0:01:28]} a5 {[%emt 0:04:55]} 40. f5 {[%emt 0:01:09]} e5 {[%emt 0:01:42]} 41. Nc1 {[%emt 0:00:58]} a4 {[%emt 0:00:19]} 42. Ng4 {[%emt 0:03:52]} Rb8 {[%emt 0:02:13]} 43. Ne3 {[%emt 0:00:11]} axb3 {[%emt 0:03:22]} 44. axb3 {[%emt 0:00:09]} Nd4+ {[%emt 0:00:17]} 45. Bxd4 {[%emt 0:12:07]} exd4 {[%emt 0:01:59]} 46. Nd5 {[%emt 0:00:39]} Ra7 {[%emt 0:01:07]} 47. Ke2 {[%emt 0:04:27]} Bd8 {[%emt 0:01:30]} 48. Kd3 {[%emt 0:00:10]} Nd7 {[%emt 0:00:23]} 49. Rb2 {[%emt 0:02:37]} Ne5+ {[%emt 0:00:10]} 50. Kc2 {[%emt 0:00:06]} Rba8 {[%emt 0:01:28]} 51. Nd3 {[%emt 0:00:30]} Nc6 {[%emt 0:04:30]} 52. N3f4 {[%emt 0:00:31]} Ba5 {[%emt 0:00:20]} 53. Ra1 {[%emt 0:00:25]} Nb4+ {[%emt 0:00:53]} 54. Nxb4 {[%emt 0:00:07]} Bxb4 {[%emt 0:00:10]} 55. Rxa7 {[%emt 0:00:25]} Rxa7 {[%emt 0:00:08]} 56. Nd3 {[%emt 0:07:54]} Bc3 {[%emt 0:00:49]} 57. Rb1 {[%emt 0:00:05]} Ra2+ {[%emt 0:00:31]} 58. Nb2 {[%emt 0:00:07]} h5 {[%emt 0:01:37]} 59. b4 {[%emt 0:00:43]} cxb4 {[%emt 0:02:00]} 60. Kb3 {[%emt 0:00:08]} Rxb2+ {[%emt 0:00:36]} 61. Rxb2 {[%emt 0:00:24]} Bxb2 {[%emt 0:00:10]} 62. Kxb2 {[%emt 0:00:09]} d3 {[%emt 0:00:12]} 0-1